Workbook

Sheet Read Me
A1: Air Pollution Control Cost Estimation Spreadsheet
A2: For Elevated Flares
A3: U.S. Environmental Protection Agency
A4: Air Economics Group
A5: Health and Environmental Impacts Division
A6: Office of Air Quality Planning and Standards
A7: (September 2022)
B9: This spreadsheet allows users to estimate the capital and annualized costs for installing and operating flares to control emissions of volatile organic compounds (VOCs) from industrial waste gas streams. Flaring is a high-temperature oxidation process where combustible components of waste gases from industrial operations react with atmospheric oxygen to form carbon dioxide and water. They can be used to control almost any VOC steam and can handle fluctuations in VOC concentration, flow rate, heating value and inert content. Flares are used for waste streams with continuous, batch and variable flows and are often used for controlling emissions during emergency events, such as process upsets at chemical plants and refineries. The basic equipment required for a flare varies depending by the flare type (ground or elevated) and method of enhancing mixing at the flare tip (i.e., steam-assisted, air-assisted, pressure-assisted or non-assisted). The typical flare system consists of (1) a gas collection header and transport piping for collecting and conveying gases from process units to the flare, (2) a knockout drum (disentrainment drum) to remove and store condensables and entrained liquids, (3) a seal or purge gas supply to prevent flash-back, (4) a single- or multiple-burner unit and stack, (5) gas pilots and an ignitor to ignite the mixture of waste gas and air, and (6) steam injection or forced air for smokeless flaring. Natural gas, fuel gas, inert gas, or nitrogen can be used as purge gas.
B11: The calculation methodologies used in this spreadsheet are those presented in the U.S. EPA's Air Pollution Control Cost Manual. This spreadsheet is intended to be used in combination with the Control Cost Manual. For a detailed description of the technology and cost methodology, see Section 3.2 (VOC Destruction Controls), Chapter 1 (Flares) of the Air Pollution Control Cost Manual (as updated in 2019). A copy of the Control Cost Manual is available on the U.S. EPA's "Technology Transfer Network" website at: https://www.epa.gov/economic-and-cost-analysis-air-pollution-regulations/cost-reports-and-guidance-air-pollution.
B13: This spreadsheet can be used to develop design parameters and estimate capital and annualized costs for elevated, steam-assisted flares. These are the most commonly used flares for industrial facilities. The methodology is designed to provide study-level cost estimates. Flares used at remote facilities, like upstream oil and gas facilities or landfills, are often non-assisted or air-assisted. The design and cost information provided in this spreadsheet are based on the information provided in Section 3.2 (VOC Destruction Controls), Chapter 1 (Flares) and do not apply to other flare types. Additionally, the methods provided in this chapter do not consider the design complexity and costs associated with a utility safety flare that service hundreds of sources. Actual costs, particularly those for installation, can deviate significantly from the costs generated using this spreadsheet due to site conditions. Units of measures in this spreadsheet are English units.
B14: Overview of Workbook
B15: Tab | E15: Description of Tab Contents
B16: Read Me | E16: Introduction and intructions
B17: Data Inputs | E17: This tab is used for entering data needed to design and cost the flare. Enter the flare support type in row 3. All other input cells are highlighted yellow.
B18: Design Parameters | E18: This tab contains the calculations used to determine flare diameter, stack height, and other paramters needed to estimate costs of the flare system.
B19: Cost Estimates | E19: This tab contains the final cost outputs for the designed flare system.
B20: Table A & B | E20: This tab contains table of default flare monitoring costs (Table A) and a table for the fraction of heat radiated for common gases (Table B).
B22: Instructions
B23: Step 1: Please select the Data Inputs tab to enter data needed to design and calt the flare system. You may click on the Reset Form button to reset the values on the Data Inputs tab.
B24: Step 2: Use the drop down menu on Row 3 of the Data Inputs tab to select the type of flare support (preliminary selection).
B25: Step 3: Complete all of the yellow data entry cells on the Data Inputs tab. Many of the fields are pre-populated with default values. Where possible, replace the default values with site-specific values in accordance with the recommendations provided in the Control Cost Manual. Use of actual values rather than the default values in this spreadsheet is recommended. Sources for all values used should be appropriately documented.
B26: Step 4: Once all of the data fields are complete, select the Design Parameters tab to see the calculated design parameters for your flare. Review the calculated Height of Flare Stack in Row 7. If there is a warning message, the type of flare support selected in Step 2 is not applicable to the calculated flare stack height. In this case, go back to the Data Inputs tab and select an appropriate type of flare support. Generally, self-supported flares may be selected if the flare stack height is 100 ft or less, guy-supported flares may be selected if the flare stack height is between 50 and 450 ft, and derrick-supported flares may be selected if the flare stack height is 200 ft or more.
B27: Step 5: Select the Cost Estimate tab to view the estimated capital and total annual costs for the flare. If more than one type of flare support is applicable for the calculated flare stack height, you may wish to compare the costs calculated for each type of applicable flare support (by changing the selection in the drop down menu in the Data Inputs tab) and select the lowest cost flare support type for your specific application.

Sheet Data Inputs
C1: Data Inputs | L1: 3 | M1: Select | O1: 0 | P1: 1
M2: Self-Supported | O2: yes | P2: 2
A3: Select the type of elevated flare support: | C3: =IF(L1=1,"Enter flare support type","") ->  | M3: Guy-Supported | O3: no | P3: 3
M4: Derrick-supported | O4: Water Seal | P4: 4
A5: Enter the design data for the proposed Flare: | O5: Flame Arrestor | P5: 5
A6: Characteristics of the Flare Gas: | P6: 5
A7: Enter flare gas composition information for up to five different operating conditions. Enter the corresponding number of operating hours for each operating in cells B30 through B35.
A8: Waste Gas Flow Rate at Condition 1 (Q1) | B8: 3000 | C8: scfm (at 68oF and 1 atm)
A9: Waste Gas Flow Rate at Condition 2 (Q2) | B9: 300 | C9: scfm (at 68oF and 1 atm)
A10: Waste Gas Flow Rate at Condition 3 (Q3) | B10: 100 | C10: scfm (at 68oF and 1 atm)
A11: Waste Gas Flow Rate at Condition 4 (Q4) | B11: 500 | C11: scfm (at 68oF and 1 atm)
A12: Waste Gas Flow Rate at Condition 5 (Q5) | B12: 200 | C12: scfm (at 68oF and 1 atm)
A13: Waste Gas Net Heat Content at Condition 1 (Bv,1) | B13: 1500 | C13: Btu/scf
A14: Waste Gas Net Heat Content at Condition 2 (Bv,2) | B14: 150 | C14: Btu/scf
A15: Waste Gas Net Heat Content at Condition 3 (Bv,3) | B15: 150 | C15: Btu/scf
A16: Waste Gas Net Heat Content at Condition 4 (Bv,4) | B16: 150 | C16: Btu/scf
A17: Waste Gas Net Heat Content at Condition 5 (Bv,5) | B17: 600 | C17: Btu/scf
A18: Average Molecular Weight of the waste gas stream (MW) | B18: 40 | C18: lbs/lb-mol
A19: Average VOC Emission Rate at Condition 1 (Mvoc-1) | B19: 1500 | C19: lb/hour
A20: Average VOC Emission Rate at Condition 2 (Mvoc-2) | B20: 100 | C20: lb/hour
A21: Average VOC Emission Rate at Condition 3 (Mvoc-3) | B21: 100 | C21: lb/hour
A22: Average VOC Emission Rate at Condition 4 (Mvoc-4) | B22: 100 | C22: lb/hour
A23: Average VOC Emission Rate at Condition 5 (Mvoc-5) | B23: 100 | C23: lb/hour
A24: Pressure at Waste Gas Collection Point (P) | B24: 10 | C24: psig | D24: =IF(B24=0.65,"* 0.65 Btu/lb-mole-°F is a default value. User should enter actual value, if known."," ") -> 
A25: Liquid Density (ρl) | B25: 49.6 | C25: lb/cubic feet
A26: Vapor Density (ρv) | B26: 0.0845 | C26: lb/cubic feet
A27: Temperature (T) | B27: 68 | C27: oF
A29: Operating Characteristics for the Flare:
A30: Number of Operating Hours at Condition 1 (t1) | B30: 100 | C30: hours/year | D30: Total Annual Hours = | E30: =SUM(B30:B34) -> 500
A31: Number of Operating Hours at Condition 2 (t2) | B31: 100 | C31: hours/year | D31: Total Waste Gas Flow Hours = | E31: =SUMIF(B8:B12,">0",B30:B34) -> 500
A32: Number of Operating Hours at Condition 3 (t3) | B32: 100 | C32: hours/year
A33: Number of Operating Hours at Condition 4 (t4) | B33: 100 | C33: hours/year
A34: Number of Operating Hours at Condition 5 (t5) | B34: 100 | C34: hours/year
A35: Required VOC removal/destruction efficiency of flare (DE) | B35: 98 | C35: ="%"&(IF(B35=98, "*","")) -> %* | D35: =IF(B35=98,"* 98% is a default control efficiency. User should enter actual value, if known."," ") -> * 98% is a default control efficiency. User should enter actual value, if known.
A36: Fraction of Heat Radiated (f) | B36: 0.3 | D36: See Table B for default values for common gases. Use 0.3 if the fraction of heat radiated is unknown.
A37: Pressure at Knockout Drum (Pk) | B37: 5 | C37: psig | D37: =IF(B37=5,"* 5 psig is a default value. User should enter actual value, if known."," ") -> * 5 psig is a default value. User should enter actual value, if known.
A38: Pressure at the Flare Tip (Pt) | B38: 1 | C38: psig | D38: =IF(B38=1,"* 1 psig is a default value. User should enter actual value, if known."," ") -> * 1 psig is a default value. User should enter actual value, if known.
A39: Estimated equipment life (n) | B39: 15 | C39: ="Years"&IF(B39=15,"*","") -> Years* | D39: =IF(B39=15,"* 15 years is a default equipment life. User should enter actual value, if known."," ") -> * 15 years is a default equipment life. User should enter actual value, if known.
A40: Length of Vent Stream Piping Required (L) | B40: 100 | C40: ="Feet"&IF(B40<=100,"*","") -> Feet* | D40: =IF(B40<100,"* The MINUMUM value for pipe length is 100 ft. Please enter a value of atleast 100.",IF(B40 =100,"* 100 feet is a default value representing the minimum piping length. User should enter actual value, if known."," ")) -> * 100 feet is a default value representing the minimum piping length. User should enter actual value, if known.
A41: Is a flame arrestor needed? | B41: no | D41: =IF(AND(B41="yes",B42="yes"),"* Generally, you do not need a flame arrestor when you have a FGRS"," ") -> 
A42: Do you intend to use a flare gas recovery system (FGRS)? | B42: no
A43: Which flow condition should be used to size the FGRS? | B43: 1 | C43: =IF(B$42="no","Not applicable", " ") -> Not applicable
A44: Number of compressors in FGRS | B44: 2 | C44: Not applicable
A45: Design flow factor per compressor | B45: 1.2 | C45: =IF(B$42="no","Not applicable", " ") -> Not applicable | D45: Suggested factors: 1.3 for 1 compressor; 1.2 for 2 compressors; 0.6 for 3 compressors; 0.4 for 4 compressors
A46: Fraction of time the FGRS is operational during the year | B46: 0.98 | C46: fraction | D46: =IF(AND(B42="yes",B44=1,B46>0.95),"* With only one compressor, compresssor downtime will typically limit average efficiency to 95% or less."," ") -> 
A47: Combustion Zone Factor (K1) | B47: 1 | D47: Enter 1 if the net heating value target is assessed in the combustion zone (as required for compliance with 40 CFR 63.670). Enter 0 if the new heating value target is assessed based on the flare gas (as required for compliance with 40 CFR 60.18 and 40 CFR 63.11).
A48: Net Heating Value Operational Target (NHVtarget) | B48: 300 | C48: Btu/scf | D48: Enter a value from 300 to 330 Btu/scf for flares complying with 40 CFR 60.18 and 40 CFR 63.11. For flares complying with 40 CFR 63.670, enter a value from 270 to 297 Btu/scf.
A49: Do you intend to meet NHVtarget when waste gas flow is zero? | B49: no | D49: Flares complying with 40 CFR 63.670 are only required to meet the NHVtarget when regulated material is sent to the flare. If the sweep or purge gas may contain regulated material, you should select "yes". Otherwise, you may select "no"
A50: Heat Content of the Auxiliary Fuel (Bf) | B50: 920 | C50: ="Btu/scf"&(IF(B50=920,"*"," ")) -> Btu/scf* | D50: =IF(B50=920,"* 920 Btu/scf is a default value. User should enter actual value, if known."," ") -> * 920 Btu/scf is a default value. User should enter actual value, if known.
A52: Operating and Maintenance Labor for the Flare System:
A53: Expected Number of Operator Labor Hours Annually | B53: 630 | C53: ="hours/year"&IF(B53=630,"*","") -> hours/year* | D53: =IF(B53=630,"* 630 hours/year is a default value for flares operated continuously. User should enter actual value, if known."," ") -> * 630 hours/year is a default value for flares operated continuously. User should enter actual value, if known.
A54: Expected Number of Maintenance Labor Hours per Shift | B54: 0.5 | C54: ="hours/shift"&IF(B54=0.5,"*","") -> hours/shift* | D54: =IF(B54=0.5,"* 0.5 hours/year is a default value for flares operated continuously. User should enter actual value, if known."," ") -> * 0.5 hours/year is a default value for flares operated continuously. User should enter actual value, if known.
A56: Enter cost data for the flare:
A58: Desired dollar-year | B58: 2021
A59: ="CEPCI* for " & B58 -> CEPCI* for 2021 | B59: 708 | C59: ="CEPCI value for "&B58 -> CEPCI value for 2021 | E59: 567.5 | F59: 2017 CEPCI
A60: Annual Interest Rate (i) | B60: 5.5 | C60: =(IF(B60<>5,"% (Current bank prime rate)","%*")) -> % (Current bank prime rate) | D60: =IF(B60=5,"* 5% is a default value. User should enter current prime bank rate, available at http://www.federalreserve.gov/releases/h15/.", "") -> 
A62: * CEPCI is the Chemical Engineering Plant Cost Index. The use of CEPCI in this spreadsheet is not an endorsement of the index for purpose of cost escalation or de-escalation, but is there merely to allow for availability of a well-known cost index to spreadsheet users. Use of other well-known cost indexes (e.g., M&S) is acceptable.
A65: Steam (Costs) | B65: 7.7 | C65: ="per 1,000 lbs"&IF(B65=5, "*","") -> per 1,000 lbs | D65: =IF(B65=7.7,"* $7.70/1,000 lbs is a default value for 2017. User should enter actual value for desired year, if known.","") -> * $7.70/1,000 lbs is a default value for 2017. User should enter actual value for desired year, if known.
A66: Natural Gas (Costfuel) | B66: 4.14 | C66: ="per Mscf"&IF(B66=4.14, "*","") -> per Mscf* | D66: =IF(B66=4.14,"* $4.14/Mscf is a default value for 2017. User should enter actual value for desired year, if known.","") -> * $4.14/Mscf is a default value for 2017. User should enter actual value for desired year, if known.
A67: Electricity (CostElec) | B67: 0.0688 | C67: per Kw-hr | D67: =IF(B67=0.0688,"* $0.0688/kW-hr is a default value for 2017. User should enter actual value for desired year, if known.","") -> * $0.0688/kW-hr is a default value for 2017. User should enter actual value for desired year, if known.
A68: Operator Labor Rate | B68: 29.63 | C68: ="per hour"&IF(B68=27.48,"*","") -> per hour | D68: =IF(B68=29.63,"* $29.63/hour is a default value for 2017. User should enter actual value for desired year, if known.","") -> * $29.63/hour is a default value for 2017. User should enter actual value for desired year, if known.
A69: Maintenance Labor Rate | B69: 25.12 | C69: ="per hour"&IF(B69=30.23,"*","") -> per hour | D69: =IF(B69=25.12,"* $25.12/hour is a default value for 2017. User should enter actual value for desired year, if known. If the rate is not known, use 1.10 x operator labor rate.","") -> * $25.12/hour is a default value for 2017. User should enter actual value for desired year, if known. If the rate is not known, use 1.10 x operator labor rate.
A71: Monitoring Equipment Cost (CM):
B72: Indicate which monitoring equipment is needed: | C72: ="If available, enter site-specific monitoring costs in "&B58&" dollars. Otherwise, leave blank and default values will be used." -> If available, enter site-specific monitoring costs in 2021 dollars. Otherwise, leave blank and default values will be used. | F72: ="Values Used For Monitoring Equipment Costs (Cm) in "&B58&" Dollars" -> Values Used For Monitoring Equipment Costs (Cm) in 2021 Dollars
A73: Pilot Flame Monitor | B73: yes | F73: =IF(B73="yes",IF(OR(C73="",C73=0),'Tables A & B'!B4,C73),0) -> 5115.066079 | G73: =IF(B73="yes",(IF(F73='Tables A & B'!B4,"(Based on default cost)","(Based on actual cost)"))," ") -> (Based on default cost) | M73: =IF(OR(G73=" ",G73="(Based on default cost)"),0,1) -> 0
A74: Gas Chromatograph (GC) | B74: no | F74: =IF(B74="yes",IF(OR(C74="",C74=0),'Tables A & B'!B5,C74),0) -> 0 | G74: =IF(B74="yes",(IF(F74='Tables A & B'!B5,"(Based on default cost)","(Based on actual cost)"))," ") ->  | M74: 0
A75: Hydrogen Analyzer | B75: yes | F75: =IF(B75="yes",IF(OR(C75="",C75=0),'Tables A & B'!B6,C75),0) -> 46035.59471 | G75: =IF(B75="yes",(IF(F75='Tables A & B'!B6,"(Based on default cost)","(Based on actual cost)"))," ") -> (Based on default cost) | M75: 0
A76: Calorimeter | B76: no | F76: =IF(B76="yes",IF(OR(C76="",C76=0),'Tables A & B'!B7,C76),0) -> 0 | G76: =IF(B76="yes",(IF(F76='Tables A & B'!B7,"(Based on default cost)","(Based on actual cost)"))," ") ->  | M76: 0
A77: Flare Gas Flow Monitor | B77: no | F77: =IF(B77="yes",IF(OR(C77="",C77=0),'Tables A & B'!B8,C77),0) -> 0 | G77: =IF(B77="yes",(IF(F77='Tables A & B'!B8,"(Based on default cost)","(Based on actual cost)"))," ") ->  | M77: 0
A78: Steam Fine Controls/Metering | B78: no | F78: =IF(B78="yes",IF(OR(C78="",C78=0),'Tables A & B'!B9,C78),0) -> 0 | G78: =IF(B78="yes",(IF(F78='Tables A & B'!B9,"(Based on default cost)","(Based on actual cost)"))," ") ->  | M78: 0
A79: Air Fine Controls/Metering | B79: no | F79: =IF(B79="yes",IF(OR(C79="",C79=0),'Tables A & B'!B10,C79),0) -> 0 | G79: =IF(B79="yes",(IF(F79='Tables A & B'!B10,"(Based on default cost)","(Based on actual cost)"))," ") ->  | M79: 0
M80: =COUNTIF(B73:B79,"yes") -> 2
A81: If known, enter any additional capital costs for utilities and installation costs for site preparation and building construction/modification:
A82: Capital Equipment Costs for Utilities (CU) = | B82: 0 | C82: =IF(B82=0, "* Default value. User should enter actual value for desired year, if known."," ") -> * Default value. User should enter actual value for desired year, if known.
A83: Site Preparation (SP) = | B83: 0 | C83: =IF(B83=0, "* Default value. User should enter actual value, if known."," ") -> * Default value. User should enter actual value, if known.
A84: Buildings (Bldg) = | B84: 0 | C84: =IF(B84=0, "* Default value. User should enter actual value, if known."," ") -> * Default value. User should enter actual value, if known.
A85: Contingency Factor (CF) = | B85: 10 | C85: ="percent"&IF(B85>=10,"*","") -> percent* | D85: =IF(B85=10,"* 10 percent is a default value. The contingency factor should be between 5 and 15 percent.",(IF(B85>15, "* The value you entered is higher than expected. Contingency factors are typically between 5 and 15%", " "))) -> * 10 percent is a default value. The contingency factor should be between 5 and 15 percent.
A88: Data Sources for Default Values Used in Calculations:
A90: Data Element | B90: Default Value | C90: Sources for Default Value | E90: If you used your own site-specific values, please reference the source from which the site-specific value was derived. | J90: Recommended data sources for site-specific information
A91: Natural Gas Price ($/Mscf) | B91: 4.14 | C91: Average annual natural gas price for industrial facilities in 2017 based on data from Department of Energy, Energy Information Administration (Available at https://www.eia.gov/dnav/ng/ng_pri_sum_dcu_nus_a.htm). | J91: Plant's utility bill or use Department of Energy, Energy Information Administration (EIA) data for most recent year. Available at http://www.eia.gov/electricity/data.cfm#sales.
A92: Operator Labor Rate ($/hour) | B92: 29.63 | C92: Bureau of Labor Statistics - May 2017 median labor costs for occupational code (51-8091). | J92: Use payroll data, if available, or check current edition of the Bureau of Labor Statistics, National Occupational Employment and Wage Estimates – United States (https://data.bls.gov/oes/#/occGeo/One%20occupation%20for%20multiple%20geographical%20areas).
A93: Maintenance Labor Rate ($/hour) | B93: 25.12 | C93: Bureau of Labor Statistics - May 2017 median labor costs for occupational code (49-9040). | J93: Use payroll data, if available, or check current edition of the Bureau of Labor Statistics, National Occupational Employment and Wage Estimates – United States (https://data.bls.gov/oes/#/occGeo/One%20occupation%20for%20multiple%20geographical%20areas).
A94: Steam ($/1,000 lb.) | B94: =ROUND(1.3*(1128*1000/920*(B91/1000)/0.857),2) -> 7.7 | C94: Price of steam was estimated using the industrial gas price, 85.7% overall boiler efficiency for delivered steam, a NHV value for natural gas of 920 Btu/scf, steam pressure of 150 psig and inlet water temperature of 100 deg. F (energy need of 1,128 Btu/lb steam; see U.S. DOE, 2012. Available at https://www.energy.gov/sites/prod/files/2014/05/f16/steam15_benchmark.pdf) then multiplying fuel cost by 1.3 (U.S. DOE , 2003) to estimate total cost of steam. | J94: Use actual values if known, or estimate steam cost as 1.3 x Fuel Cost for oil and gas-fired facilities. See also Department of Energy, Energy Efficiency and Renewable Energy, " How to Calculate the True Cost of Steam." DOE/GO-102003-1736, September 2003 (available at https://www.energy.gov/sites/prod/files/2014/05/f15/tech_brief_true_cost.pdf) and "Benchmark the Fuel Cost of Steam Generation." DOE/GO-102012-3391, January 2012 (Available at https://www.energy.gov/sites/prod/files/2014/05/f16/steam15_benchmark.pdf)
A95: Electricity ($/Kw-hr) | B95: 0.0688 | C95: U.S. annual average industrial price electricity for 2017 (EIA). https://www.eia.gov/electricity/annual/html/epa_02_04.html

Sheet Design Parameters
A1: Design Parameters
A3: The following design parameters for the flare are calculated based on the values entered on the Data Inputs tab. These values are used to prepare the costs shown on the Cost Estimate tab.
A5: Key Design Parameters | B5: Warnings (if applicable) | C5: Calculated Value | D5: Units
A6: Flare Tip Diameter (D) | C6: =C27 -> 8 | D6: =D27 -> inches
A7: Height of Flare Stack (H) | B7: =IF('Data Inputs'!L1=1,"Enter flare support type in Row 3 of Data Inputs tab",IF(AND('Data Inputs'!L1=2,C7>100),"Flare height exceeds height for self-supported flare. Select different flare type.",IF(AND('Data Inputs'!L1=3,C7>450),"Flare height exceeds height for guy-supported flare. Select derrick-supported flare type.",IF(AND('Data Inputs'!L1=3,C7<50),"Flare height is less than that used for guy-supported flares. Select self-supported flare type.", IF(AND('Data Inputs'!L1=4,C7<200),"Flare height is less that that used for derrick-supported flare. Select a different flare type.",""))))) ->  | C7: =C28 -> 121 | D7: =D28 -> ft.
L8: Identify Max Flow and Min Velocity Condition | N8: Allowed Velocity (ft/s) | O8: Heat Release (MMBtu/hr) | P8: Diameter (in)
A9: Parameter | B9: Equation | C9: Calculated Value | D9: Units | L9: Q + Fmin | M9: NHV vent gas
A10: Total Annual Hours (top) = | B10: t1 + t2 + t3 + t4 + t5 = | C10: ='Data Inputs'!E30 -> 500 | D10: hours/year | K10: 1 | L10: ='Data Inputs'!B8+IF('Data Inputs'!B13<'Data Inputs'!$B$48,IF('Data Inputs'!B8=0,1,'Data Inputs'!B8)*('Data Inputs'!$B$48-'Data Inputs'!B13)/('Data Inputs'!$B$50-'Data Inputs'!$B$48),0) -> 3000 | M10: =IF(L10=0,1000,('Data Inputs'!B13*'Data Inputs'!B8+'Data Inputs'!$B$50*(L10-'Data Inputs'!B8))/(L10)) -> 1500 | N10: =IF(M10<300,60,IF(M10>=1000,400,(10)^((M10+1212)/850))) -> 400 | O10: =L10*M10*60/1000000 -> 270 | P10: =1.95*SQRT((L10*((460+'Data Inputs'!$B$27)/(460+68))*(14.7/(14.7+'Data Inputs'!$B$38)))/N10) -> 5.167423837
A11: Total Waste Gas Flow Hours (twaste gas) = | B11: Σt if waste gas flow>0 | C11: ='Data Inputs'!E31 -> 500 | D11: hours/year | K11: 2 | L11: ='Data Inputs'!B9+IF('Data Inputs'!B14<'Data Inputs'!$B$48,IF('Data Inputs'!B9=0,1,'Data Inputs'!B9)*('Data Inputs'!$B$48-'Data Inputs'!B14)/('Data Inputs'!$B$50-'Data Inputs'!$B$48),0) -> 372.5806452 | M11: =IF(L11=0,1000,('Data Inputs'!B14*'Data Inputs'!B9+'Data Inputs'!$B$50*(L11-'Data Inputs'!B9))/(L11)) -> 300 | N11: =IF(M11<300,60,IF(M11>=1000,400,(10)^((M11+1212)/850))) -> 60.0929507 | O11: =L11*M11*60/1000000 -> 6.706451613 | P11: =1.95*SQRT((L11*((460+'Data Inputs'!$B$27)/(460+68))*(14.7/(14.7+'Data Inputs'!$B$38)))/N11) -> 4.698311778
A12: Maximum Total Volumetric Flow at Flare Tip (Qtot) = | B12: (Qmax + Fmin) x (Tactual/Ts) x (Ps/Pt) = | C12: =MAX(L10:L14)*((460+'Data Inputs'!B27)/(460+68))*(14.7/(14.7+'Data Inputs'!B38)) -> 2808.917197 | D12: acfm | K12: 3 | L12: ='Data Inputs'!B10+IF('Data Inputs'!B15<'Data Inputs'!$B$48,IF('Data Inputs'!B10=0,1,'Data Inputs'!B10)*('Data Inputs'!$B$48-'Data Inputs'!B15)/('Data Inputs'!$B$50-'Data Inputs'!$B$48),0) -> 124.1935484 | M12: =IF(L12=0,1000,('Data Inputs'!B15*'Data Inputs'!B10+'Data Inputs'!$B$50*(L12-'Data Inputs'!B10))/(L12)) -> 300 | N12: 60.0929507 | O12: 2.235483871 | P12: =1.95*SQRT((L12*((460+'Data Inputs'!$B$27)/(460+68))*(14.7/(14.7+'Data Inputs'!$B$38)))/N12) -> 2.71257157
A13: Vent Stream Flow at Actual Conditions in the Knockout Drum (Qactual) = | B13: Qmax x (Tactual/Ts) x (Ps/Pk) = | C13: =MAX(L10:L14)*((460+'Data Inputs'!B27)/(460+68))*(14.7/(14.7+'Data Inputs'!B37)) -> 2238.57868 | D13: acfm | K13: 4 | L13: ='Data Inputs'!B11+IF('Data Inputs'!B16<'Data Inputs'!$B$48,IF('Data Inputs'!B11=0,1,'Data Inputs'!B11)*('Data Inputs'!$B$48-'Data Inputs'!B16)/('Data Inputs'!$B$50-'Data Inputs'!$B$48),0) -> 620.9677419 | M13: =IF(L13=0,1000,('Data Inputs'!B16*'Data Inputs'!B11+'Data Inputs'!$B$50*(L13-'Data Inputs'!B11))/(L13)) -> 300 | N13: 60.0929507 | O13: 11.17741935 | P13: =1.95*SQRT((L13*((460+'Data Inputs'!$B$27)/(460+68))*(14.7/(14.7+'Data Inputs'!$B$38)))/N13) -> 6.065494424
A14: Net Heat Release (R ) = | B14: [(Qmax x Bv,max) + (Fa,max x Bf] x 60 = | C14: =MAX(O10:O14)*1000000 -> 270000000 | D14: Btu/hour | K14: 5 | L14: ='Data Inputs'!B12+IF('Data Inputs'!B17<'Data Inputs'!$B$48,IF('Data Inputs'!B12=0,1,'Data Inputs'!B12)*('Data Inputs'!$B$48-'Data Inputs'!B17)/('Data Inputs'!$B$50-'Data Inputs'!$B$48),0) -> 200 | M14: =IF(L14=0,1000,('Data Inputs'!B17*'Data Inputs'!B12+'Data Inputs'!$B$50*(L14-'Data Inputs'!B12))/(L14)) -> 600 | N14: 135.445539 | O14: 7.2 | P14: =1.95*SQRT((L14*((460+'Data Inputs'!$B$27)/(460+68))*(14.7/(14.7+'Data Inputs'!$B$38)))/N14) -> 2.292852395
A16: Amount of VOC Removed: | L16: Stack Diameter | M16: Adjusted Stack Diameter
A17: VOC Removed (Wvoc) = | B17: Wvoc = ∑ (Mvoc-i x ti x DE)/2000 = | C17: =((('Data Inputs'!B30*'Data Inputs'!B19)+('Data Inputs'!B31*'Data Inputs'!B20)+('Data Inputs'!B32*'Data Inputs'!B21)+('Data Inputs'!B33*'Data Inputs'!B22)+('Data Inputs'!B34*'Data Inputs'!B23))*('Data Inputs'!B35/100))/2000 -> 93.1 | D17: tons/year | L17: =MAX(P10:P14) -> 6.065494424 | M17: =IF(L17<=24,M18,M19) -> 8 | N17: Ajusted for available stack diameters: 2 inch increments for diameters less than or equal to diamters calcualted to be 24 inches. 6 inch increments for diameters calculated to be >24 inches.
M18: =_xlfn.CEILING.MATH(L17,2) -> 8
A19: Estimated Knock-out Drum Specifications: | M19: =_xlfn.CEILING.MATH(L17,6) -> 12
A20: Maximum Design Vapor Velocity (U) = | B20: 0.2 x [(ρl - ρv)/ρv]0.5 = | C20: =0.2*SQRT(('Data Inputs'!B25-'Data Inputs'!B26)/'Data Inputs'!B26) -> 4.841414044 | D20: ft./sec. | L20: Knock-out Drum Diameter: | M20: Calculated Value
A21: Minimum Vessel Cross-Sectional Area (A) = | B21: Qactual/(60 x U) = | C21: =(C13/(60*C20)) -> 7.7063528 | D21: sq. ft. | L21: =_xlfn.CEILING.MATH(M21,6) -> 42 | M21: =(13.5*SQRT(C21)) -> 37.4764299
A22: Drum Diameter (d) (rounded to the next largest drum size in 6-inch increments) = | B22: 13.5 x √A = | C22: =L21 -> 42 | D22: inches | E22: =IF(M21=L21*6," ", "* Drum diameter rounded to next largest size.") -> * Drum diameter rounded to next largest size. | L22: Stack Height
A23: Drum Height (h) = | B23: 3 x d = | C23: =(3*C22)/12 -> 10.5 | D23: ft. | L23: =INT(7+SQRT((1*'Data Inputs'!B36*'Design Parameters'!C14)/(4*PI()*500))+1) -> 121
A24: Drum Thickness (t) = | B24: ="(based on vessel diameter of "&C22&" inches- See Table 1.4 in Cost Manual Chapter)" -> (based on vessel diameter of 42 inches- See Table 1.4 in Cost Manual Chapter) | C24: =N31 -> 0.37 | D24: inches | L24: Vessel Thickness based on diameter
L25: Diameter | M25: Thickness, t
A26: Estimated Flare Dimensions: | L26: less 36 | M26: 0.25 | N26: =IF(C$22<36, M26, 0) -> 0
A27: Flare Tip Diameter (D) = | B27: 1.95 x (Qtot/Vmax)0.5 = | C27: =M17 -> 8 | D27: inches | E27: =IF(L17=M17, " ","* Diameter rounded to next largest available size.") -> * Diameter rounded to next largest available size. | L27: between 36 and 72 | M27: 0.37 | N27: =IF(AND(C$22>=36,C$22<72), M27, 0) -> 0.37
A28: Height of Flare Stack (H) = | B28: 7 feet + [(τ x f x R)/(4π x 500 Btu/hr-sq.ft)]0.5 = | C28: =IF(L23<30, 30, L23) -> 121 | D28: ft. | E28: =IF(L23<30, "Stack height must be at least 30 feet", " ") ->  | L28: between 72 and 108 | M28: 0.55 | N28: =IF(AND(C$22>=72,C$22<108), M28, 0) -> 0
L29: between 108 and 144 | M29: 0.75 | N29: =IF(AND(C$22>=108,C$22<144), M29, 0) -> 0
A30: Steam Consumption: | L30: greater than 144 | M30: 1 | N30: =IF(C$22>=144, M30, 0) -> 0
A31: Minimum Required Steam Flow Rate (Mmin) = | B31: [(46 lbs steam/hour)/1 inch of flare diameter] x D = | C31: =46*C27 -> 368 | D31: lbs./hour | M31: thickness, t = | N31: =SUM(N26:N30) -> 0.37
A32: Minimum Required Steam Flow Rate = | B32: (Mmin/60 mins/hour) x (385.3 scf/lb-mol/18 lb/lb-mol) = | C32: =(C31/60)*(385.3/18) -> 131.2874074 | D32: scfm
A34: Initial estimate of mass steam flow rate at Condition 1 (M1)= | B34: 0.4 x (Qi - Qcap) x 60 x (MWt/385.3) = Where Qi is the flow rate at condition i. If Qcap > Qi, then intial estimate of mass steam flow rate for condition i is zero. | C34: =0.4*IF('Data Inputs'!B8>$C$70,'Data Inputs'!B8-$C$70,0)*60*('Data Inputs'!B$18/385.3) -> 7474.695043 | D34: lbs./hour
A35: Initial estimate of mass steam flow rate at Condition 2 (M2)= | C35: =0.4*IF('Data Inputs'!B9>$C$70,'Data Inputs'!B9-$C$70,0)*60*('Data Inputs'!B$18/385.3) -> 747.4695043 | D35: lbs./hour
A36: Initial estimate of mass steam flow rate at Condition 3 (M3)= | C36: =0.4*IF('Data Inputs'!B10>$C$70,'Data Inputs'!B10-$C$70,0)*60*('Data Inputs'!B$18/385.3) -> 249.1565014 | D36: lbs./hour
A37: Initial estimate of mass steam flow rate at Condition 4 (M4)= | C37: =0.4*IF('Data Inputs'!B11>$C$70,'Data Inputs'!B11-$C$70,0)*60*('Data Inputs'!B$18/385.3) -> 1245.782507 | D37: lbs./hour
A38: Initial estimate of mass steam flow rate at Condition 5 (M5)= | C38: =0.4*IF('Data Inputs'!B12>$C$70,'Data Inputs'!B12-$C$70,0)*60*('Data Inputs'!B$18/385.3) -> 498.3130029 | D38: lbs./hour
A39: Volumetric Steam Flow Rate at Condition 1 (S1)= | B39: =IF(C34<C$31, "Steam set to minimum flow (Mmin) (See row 29)",IF('Data Inputs'!B$47=1,IF('Data Inputs'!B13*('Data Inputs'!B8/('Data Inputs'!B8+C$32))<'Data Inputs'!B$48,"Steam set to minimum flow (Mmin) (See row 29)",IF('Data Inputs'!B13*('Data Inputs'!B8/('Data Inputs'!B8+(C34/60)*(385.3/18)))<'Data Inputs'!B$48, "Steam rate reduced to meet NHVtarget","Initial steam rate used, converted to scfm")))) -> Initial steam rate used, converted to scfm | C39: =IF(C34<C$31, C$32, IF('Data Inputs'!B$47=1,IF('Data Inputs'!B13*('Data Inputs'!B8/('Data Inputs'!B8+C$32))<'Data Inputs'!B$48, C$32,IF('Data Inputs'!B13*('Data Inputs'!B8/('Data Inputs'!B8+(C34/60)*(385.3/18)))<'Data Inputs'!B$48, 'Data Inputs'!B8*('Data Inputs'!B13/'Data Inputs'!$B$48-1), C34/60*(385.3/18))))) -> 2666.666667 | D39: scfm
A40: Volumetric Steam Flow Rate at Condition 2 (S2)= | B40: =IF(C35<C$31, "Steam set to minimum flow (Mmin) (See row 29)",IF('Data Inputs'!B$47=1,IF('Data Inputs'!B14*('Data Inputs'!B9/('Data Inputs'!B9+C$32))<'Data Inputs'!B$48,"Steam set to minimum flow (Mmin) (See row 29)",IF('Data Inputs'!B14*('Data Inputs'!B9/('Data Inputs'!B9+(C35/60)*(385.3/18)))<'Data Inputs'!B$48, "Steam rate reduced to meet NHVtarget","Initial steam rate used, converted to scfm")))) -> Steam set to minimum flow (Mmin) (See row 29) | C40: =IF(C35<C$31, C$32, IF('Data Inputs'!B$47=1,IF('Data Inputs'!B14*('Data Inputs'!B9/('Data Inputs'!B9+C$32))<'Data Inputs'!B$48, C$32,IF('Data Inputs'!B14*('Data Inputs'!B9/('Data Inputs'!B9+(C35/60)*(385.3/18)))<'Data Inputs'!B$48, 'Data Inputs'!B9*('Data Inputs'!B14/'Data Inputs'!$B$48-1), C35/60*(385.3/18))))) -> 131.2874074 | D40: scfm
A41: Volumetric Steam Flow Rate at Condition 3 (S3)= | B41: =IF(C36<C$31, "Steam set to minimum flow (Mmin) (See row 29)",IF('Data Inputs'!B$47=1,IF('Data Inputs'!B15*('Data Inputs'!B10/('Data Inputs'!B10+C$32))<'Data Inputs'!B$48,"Steam set to minimum flow (Mmin) (See row 29)",IF('Data Inputs'!B15*('Data Inputs'!B10/('Data Inputs'!B10+(C36/60)*(385.3/18)))<'Data Inputs'!B$48, "Steam rate reduced to meet NHVtarget","Initial steam rate used, converted to scfm")))) -> Steam set to minimum flow (Mmin) (See row 29) | C41: =IF(C36<C$31, C$32, IF('Data Inputs'!B$47=1,IF('Data Inputs'!B15*('Data Inputs'!B10/('Data Inputs'!B10+C$32))<'Data Inputs'!B$48, C$32,IF('Data Inputs'!B15*('Data Inputs'!B10/('Data Inputs'!B10+(C36/60)*(385.3/18)))<'Data Inputs'!B$48, 'Data Inputs'!B10*('Data Inputs'!B15/'Data Inputs'!$B$48-1), C36/60*(385.3/18))))) -> 131.2874074 | D41: scfm
A42: Volumetric Steam Flow Rate at Condition 4 (S4)= | B42: =IF(C37<C$31, "Steam set to minimum flow (Mmin) (See row 29)",IF('Data Inputs'!B$47=1,IF('Data Inputs'!B16*('Data Inputs'!B11/('Data Inputs'!B11+C$32))<'Data Inputs'!B$48,"Steam set to minimum flow (Mmin) (See row 29)",IF('Data Inputs'!B16*('Data Inputs'!B11/('Data Inputs'!B11+(C37/60)*(385.3/18)))<'Data Inputs'!B$48, "Steam rate reduced to meet NHVtarget","Initial steam rate used, converted to scfm")))) -> Steam set to minimum flow (Mmin) (See row 29) | C42: =IF(C37<C$31, C$32, IF('Data Inputs'!B$47=1,IF('Data Inputs'!B16*('Data Inputs'!B11/('Data Inputs'!B11+C$32))<'Data Inputs'!B$48, C$32,IF('Data Inputs'!B16*('Data Inputs'!B11/('Data Inputs'!B11+(C37/60)*(385.3/18)))<'Data Inputs'!B$48, 'Data Inputs'!B11*('Data Inputs'!B16/'Data Inputs'!$B$48-1), C37/60*(385.3/18))))) -> 131.2874074 | D42: scfm
A43: Volumetric Steam Flow Rate at Condition 5 (S5)= | B43: =IF(C38<C$31, "Steam set to minimum flow (Mmin) (See row 29)",IF('Data Inputs'!B$47=1,IF('Data Inputs'!B17*('Data Inputs'!B12/('Data Inputs'!B12+C$32))<'Data Inputs'!B$48,"Steam set to minimum flow (Mmin) (See row 29)",IF('Data Inputs'!B17*('Data Inputs'!B12/('Data Inputs'!B12+(C38/60)*(385.3/18)))<'Data Inputs'!B$48, "Steam rate reduced to meet NHVtarget","Initial steam rate used, converted to scfm")))) -> Initial steam rate used, converted to scfm | C43: =IF(C38<C$31, C$32, IF('Data Inputs'!B$47=1,IF('Data Inputs'!B17*('Data Inputs'!B12/('Data Inputs'!B12+C$32))<'Data Inputs'!B$48, C$32,IF('Data Inputs'!B17*('Data Inputs'!B12/('Data Inputs'!B12+(C38/60)*(385.3/18)))<'Data Inputs'!B$48, 'Data Inputs'!B12*('Data Inputs'!B17/'Data Inputs'!$B$48-1), C38/60*(385.3/18))))) -> 177.7777778 | D43: scfm
A44: Mass Steam Flow Rate at Condition 1 (M1)= | B44: (S1)(60)(18/385.3) = | C44: =C39*60*18/385.3 -> 7474.695043 | D44: lbs./hour
A45: Mass Steam Flow Rate at Condition 2 (M2)= | B45: (S2)(60)(18/385.3) = | C45: =C40*60*18/385.3 -> 368 | D45: lbs./hour
A46: Mass Steam Flow Rate at Condition 3 (M3)= | B46: (S3)(60)(18/385.3) = | C46: 368 | D46: lbs./hour
A47: Mass Steam Flow Rate at Condition 4 (M4)= | B47: (S4)(60)(18/385.3) = | C47: 368 | D47: lbs./hour
A48: Mass Steam Flow Rate at Condition 5 (M5)= | B48: (S5)(60)(18/385.3) = | C48: 498.3130029 | D48: lbs./hour
A49: Total Steam Required (Msteam) = | B49: (M1 x t1) + (M2 x t2) + (M3 x t3) + (M4 x t4) + (M5 × t5) = | C49: =(C44*'Data Inputs'!B$30)+(C45*'Data Inputs'!B$31)+(C46*'Data Inputs'!B$32)+(C47*'Data Inputs'!B$33)+(C48*'Data Inputs'!B$34) -> 907700.8046 | D49: lbs./year
A51: Net Heating Value with No Auxiliary Fuel Added:
A52: Net Heating Value at Condition 1 (NHV1) = | B52: (Bv,1 x Q1)/(Q1 + K1S1) = | C52: =IFERROR(('Data Inputs'!B13*'Data Inputs'!B8)/('Data Inputs'!B8+'Data Inputs'!$B$47*'Design Parameters'!C39),'Data Inputs'!B13) -> 794.1176471 | D52: Btu/scf.
A53: Net Heating Value at Condition 2 (NHV2) = | B53: (Bv,2 x Q2)/(Q2 + K1S2) = | C53: =IFERROR(('Data Inputs'!B14*'Data Inputs'!B9)/('Data Inputs'!B9+'Data Inputs'!$B$47*'Design Parameters'!C40),'Data Inputs'!B14) -> 104.3387756 | D53: Btu/scf.
A54: Net Heating Value at Condition 3 (NHV3) = | B54: (Bv,3 x Q3)/(Q3 + K1S3) = | C54: =IFERROR(('Data Inputs'!B15*'Data Inputs'!B10)/('Data Inputs'!B10+'Data Inputs'!$B$47*'Design Parameters'!C41),'Data Inputs'!B15) -> 64.85437391 | D54: Btu/scf.
A55: Net Heating Value at Condition 4 (NHV4) = | B55: (Bv,4 x Q4)/(Q4 + K1S4) = | C55: =IFERROR(('Data Inputs'!B16*'Data Inputs'!B11)/('Data Inputs'!B11+'Data Inputs'!$B$47*'Design Parameters'!C42),'Data Inputs'!B16) -> 118.8048409 | D55: Btu/scf.
A56: Net Heating Value at Condition 5 (NHV5) = | B56: (Bv,5 x Q5)/(Q5 + K1S5) = | C56: =IFERROR(('Data Inputs'!B17*'Data Inputs'!B12)/('Data Inputs'!B12+'Data Inputs'!$B$47*'Design Parameters'!C43),'Data Inputs'!B17) -> 317.6470588 | D56: Btu/scf.
A58: Natural Gas Consumption
A59: Auxiliary Fuel Consumption at Maximum Flow Conditions (Fmin 1) = | B59: =IF(OR(C$70>'Data Inputs'!B8,AND('Data Inputs'!$B$49="no",'Data Inputs'!B8=0)),"No auxiliary fuel needed if no waste gas flow",IF(C52>='Data Inputs'!$B$48,"No auxiliary fuel required because NHVmax > NHVtarget","[Q1 × (NHVtarget - Bv,1) + NHVtarget × K1 × S1]/(Bf - NHVtarget) = ")) -> No auxiliary fuel required because NHVmax > NHVtarget | C59: =IF(OR(C52>='Data Inputs'!B$48,AND('Data Inputs'!$B$49="no",'Data Inputs'!B8=0),C$70>'Data Inputs'!B8),0,('Data Inputs'!B8*('Data Inputs'!B$48-'Data Inputs'!B13)+('Data Inputs'!B$48*'Data Inputs'!B$47*'Design Parameters'!C39))/('Data Inputs'!B$50-'Data Inputs'!B$48)) -> 0 | D59: scfm
A60: Auxiliary Fuel Consumption at Typical Flow Conditions (Fmin 2) = | B60: =IF(OR(C$70>'Data Inputs'!B9,AND('Data Inputs'!$B$49="no",'Data Inputs'!B9=0)),"No auxiliary fuel needed if no waste gas flow",IF(C53>='Data Inputs'!$B$48,"No auxiliary fuel required because NHVmax > NHVtarget","[Q1 × (NHVtarget - Bv,1) + NHVtarget × K1 × S1]/(Bf - NHVtarget) = ")) -> [Q1 × (NHVtarget - Bv,1) + NHVtarget × K1 × S1]/(Bf - NHVtarget) = | C60: =IF(OR(C53>='Data Inputs'!B$48,AND('Data Inputs'!$B$49="no",'Data Inputs'!B9=0),C$70>'Data Inputs'!B9),0,('Data Inputs'!B9*('Data Inputs'!B$48-'Data Inputs'!B14)+('Data Inputs'!B$48*'Data Inputs'!B$47*'Design Parameters'!C40))/('Data Inputs'!B$50-'Data Inputs'!B$48)) -> 136.10681 | D60: scfm | L60: Number of Burners (N) | M60: N= | N60: Select
A61: Auxiliary Fuel Consumption at Low Flow Conditions (Fmin 3) = | B61: =IF(OR(C$70>'Data Inputs'!B10,AND('Data Inputs'!$B$49="no",'Data Inputs'!B10=0)),"No auxiliary fuel needed if no waste gas flow",IF(C54>='Data Inputs'!$B$48,"No auxiliary fuel required because NHVmax > NHVtarget","[Q1 × (NHVtarget - Bv,1) + NHVtarget × K1 × S1]/(Bf - NHVtarget) = ")) -> [Q1 × (NHVtarget - Bv,1) + NHVtarget × K1 × S1]/(Bf - NHVtarget) = | C61: =IF(OR(C54>='Data Inputs'!B$48,AND('Data Inputs'!$B$49="no",'Data Inputs'!B10=0),C$70>'Data Inputs'!B10),0,('Data Inputs'!B10*('Data Inputs'!B$48-'Data Inputs'!B15)+('Data Inputs'!B$48*'Data Inputs'!B$47*'Design Parameters'!C41))/('Data Inputs'!B$50-'Data Inputs'!B$48)) -> 87.71971326 | D61: scfm | L61: Less than 10 inches | M61: 1 | N61: =IF(C27<=10,1,0) -> 1
A62: Auxiliary Fuel Consumption at No Waste Gas Flow Conditions (Fmin 4) = | B62: =IF(OR(C$70>'Data Inputs'!B11,AND('Data Inputs'!$B$49="no",'Data Inputs'!B11=0)),"No auxiliary fuel needed if no waste gas flow",IF(C55>='Data Inputs'!$B$48,"No auxiliary fuel required because NHVmax > NHVtarget","[Q1 × (NHVtarget - Bv,1) + NHVtarget × K1 × S1]/(Bf - NHVtarget) = ")) -> [Q1 × (NHVtarget - Bv,1) + NHVtarget × K1 × S1]/(Bf - NHVtarget) = | C62: =IF(OR(C55>='Data Inputs'!B$48,AND('Data Inputs'!$B$49="no",'Data Inputs'!B11=0),C$70>'Data Inputs'!B11),0,('Data Inputs'!B11*('Data Inputs'!B$48-'Data Inputs'!B16)+('Data Inputs'!B$48*'Data Inputs'!B$47*'Design Parameters'!C42))/('Data Inputs'!B$50-'Data Inputs'!B$48)) -> 184.4939068 | D62: scfm | L62: Between than 10 and 24inches | M62: 2 | N62: =IF(AND(C27>10,C27<=24),2,0) -> 0
A63: Auxiliary Fuel Consumption at No Waste Gas Flow Conditions (Fmin 5) = | B63: =IF(OR(C$70>'Data Inputs'!B12,AND('Data Inputs'!$B$49="no",'Data Inputs'!B12=0)),"No auxiliary fuel needed if no waste gas flow",IF(C56>='Data Inputs'!$B$48,"No auxiliary fuel required because NHVmax > NHVtarget","[Q1 × (NHVtarget - Bv,1) + NHVtarget × K1 × S1]/(Bf - NHVtarget) = ")) -> No auxiliary fuel required because NHVmax > NHVtarget | C63: =IF(OR(C56>='Data Inputs'!B$48,AND('Data Inputs'!$B$49="no",'Data Inputs'!B12=0),C$70>'Data Inputs'!B12),0,('Data Inputs'!B12*('Data Inputs'!B$48-'Data Inputs'!B17)+('Data Inputs'!B$48*'Data Inputs'!B$47*'Design Parameters'!C43))/('Data Inputs'!B$50-'Data Inputs'!B$48)) -> 0 | D63: scfm | L63: Between 24 and 60 inches | M63: 3 | N63: =IF(AND(C27>24,C27<=60),3,0) -> 0
A64: Total Auxiliary Fuel Consumption (Fa) = | B64: [(Fmin1 × t1) + (Fmin2 × t2)+ (Fmin3 × t3)+ (Fmin4 × t4) +(Fmin5 + t5)] × 60 min/hr = | C64: =60*((C59*'Data Inputs'!B30)+(C60*'Data Inputs'!B31)+(C61*'Data Inputs'!B$32)+(C62*'Data Inputs'!B$33)+(C63*'Data Inputs'!B34)) -> 2449922.581 | D64: scf/year | L64: Greater than 60 inches | M64: 4 | N64: =IF(C27>60, 4, 0) -> 0
B65: Fa /[1000 scf/Mscf] = | C65: =C64/1000 -> 2449.922581 | D65: Mscf/year | M65: N= | N65: =SUM(N60:N64) -> 1
A66: Purge Gas Consumption (Fpurge) = | B66: (7.85 x 10-4) x top x D2 = | C66: =(0.000785)*'Design Parameters'!C10*('Design Parameters'!C27)^2 -> 25.12 | D66: Mscf/year
A67: Pilot Gas Consumption (Fpilot) = | B67: (70) x N x top x 10-3 = | C67: =70*N65*'Design Parameters'!C10*0.001 -> 35 | D67: Mscf/year
A69: Flare Gas Recovery System
A70: Design Flow Capacity of FGR System (Qcap) = | B70: =IF('Data Inputs'!B42="yes", _xlfn.CONCAT("Flow for Condition ",'Data Inputs'!B43," × No.Compressor × CapFactor/Compr"),"No FGR system") -> No FGR system | C70: =IF('Data Inputs'!B42="yes",IF('Data Inputs'!B43=1,'Data Inputs'!B8,IF('Data Inputs'!B43=2,'Data Inputs'!B9,IF('Data Inputs'!B43=3,'Data Inputs'!B10,IF('Data Inputs'!B43=4,'Data Inputs'!B11,'Data Inputs'!B12))))*'Data Inputs'!B44*'Data Inputs'!B45,0) -> 0 | D70: scfm
A71: Natural gas offset (Foffset) = | C71: =IF('Data Inputs'!B42="yes",0.001*'Data Inputs'!B46*60/'Data Inputs'!B50,0)*(IF(C70>'Data Inputs'!B8,'Data Inputs'!B8,C70)*'Data Inputs'!B13*'Data Inputs'!B30+IF(C70>'Data Inputs'!B9,'Data Inputs'!B9,C70)*'Data Inputs'!B14*'Data Inputs'!B31+IF(C70>'Data Inputs'!B10,'Data Inputs'!B10,C70)*'Data Inputs'!B15*'Data Inputs'!B32+IF(C70>'Data Inputs'!B11,'Data Inputs'!B11,C70)*'Data Inputs'!B16*'Data Inputs'!B33+IF(C70>'Data Inputs'!B12,'Data Inputs'!B12,C70)*'Data Inputs'!B17*'Data Inputs'!B34) -> 0 | D71: Mscf/yr | L71: Number of compressors needed for full recovery | M71: Nop × Qcap/Ntotal
A72: Electricity Consumption at Condition 1 (t1 × EFGR,1) = | B72: t1 × 0.806 × Nop,1 × Qcap/Ntotal) | C72: =0.0806*IF(L72=0,0,IF(L72<1,$C$70/'Data Inputs'!$B$44,IF(L72>'Data Inputs'!$B$44-1,$C$70,IF(L72<2,$C$70*2/'Data Inputs'!$B$44,IF(L72<3,$C$70*3/'Data Inputs'!$B$44,IF(L72<4,$C$70*4/'Data Inputs'!$B$44,"Error"))))))*'Data Inputs'!B30 -> 0 | D72: kW-hr/yr | L72: =IF($C$70=0,0,'Data Inputs'!B8/($C$70/'Data Inputs'!$B$44)) -> 0 | M72: =IF(L72=0,0,IF(L72<1,$C$70/'Data Inputs'!$B$44,IF(L72>'Data Inputs'!$B$44-1,$C$70,IF(L72<2,$C$70*2/'Data Inputs'!$B$44,IF(L72<3,$C$70*3/'Data Inputs'!$B$44,IF(L72<4,$C$70*4/'Data Inputs'!$B$44,"Error")))))) -> 0
A73: Electricity Consumption at Condition 2 (t2 × EFGR,2) = | B73: t2 × 0.806 × Nop,2 × Qcap/Ntotal) | C73: =0.0806*IF(L73=0,0,IF(L73<1,$C$70/'Data Inputs'!$B$44,IF(L73>'Data Inputs'!$B$44-1,$C$70,IF(L73<2,$C$70*2/'Data Inputs'!$B$44,IF(L73<3,$C$70*3/'Data Inputs'!$B$44,IF(L73<4,$C$70*4/'Data Inputs'!$B$44,"Error"))))))*'Data Inputs'!B31 -> 0 | D73: kW-hr/yr | L73: =IF($C$70=0,0,'Data Inputs'!B9/($C$70/'Data Inputs'!$B$44)) -> 0 | M73: =IF(L73=0,0,IF(L73<1,$C$70/'Data Inputs'!$B$44,IF(L73>'Data Inputs'!$B$44-1,$C$70,IF(L73<2,$C$70*2/'Data Inputs'!$B$44,IF(L73<3,$C$70*3/'Data Inputs'!$B$44,IF(L73<4,$C$70*4/'Data Inputs'!$B$44,"Error")))))) -> 0
A74: Electricity Consumption at Condition 3 (t3 × EFGR,3) = | B74: t3 × 0.806 × Nop,3 × Qcap/Ntotal) | C74: =0.0806*IF(L74=0,0,IF(L74<1,$C$70/'Data Inputs'!$B$44,IF(L74>'Data Inputs'!$B$44-1,$C$70,IF(L74<2,$C$70*2/'Data Inputs'!$B$44,IF(L74<3,$C$70*3/'Data Inputs'!$B$44,IF(L74<4,$C$70*4/'Data Inputs'!$B$44,"Error"))))))*'Data Inputs'!B32 -> 0 | D74: kW-hr/yr | L74: =IF($C$70=0,0,'Data Inputs'!B10/($C$70/'Data Inputs'!$B$44)) -> 0 | M74: =IF(L74=0,0,IF(L74<1,$C$70/'Data Inputs'!$B$44,IF(L74>'Data Inputs'!$B$44-1,$C$70,IF(L74<2,$C$70*2/'Data Inputs'!$B$44,IF(L74<3,$C$70*3/'Data Inputs'!$B$44,IF(L74<4,$C$70*4/'Data Inputs'!$B$44,"Error")))))) -> 0
A75: Electricity Consumption at Condition 4 (t4 × EFGR,4) = | B75: t4 × 0.806 × Nop,4 × Qcap/Ntotal) | C75: =0.0806*IF(L75=0,0,IF(L75<1,$C$70/'Data Inputs'!$B$44,IF(L75>'Data Inputs'!$B$44-1,$C$70,IF(L75<2,$C$70*2/'Data Inputs'!$B$44,IF(L75<3,$C$70*3/'Data Inputs'!$B$44,IF(L75<4,$C$70*4/'Data Inputs'!$B$44,"Error"))))))*'Data Inputs'!B33 -> 0 | D75: kW-hr/yr | L75: =IF($C$70=0,0,'Data Inputs'!B11/($C$70/'Data Inputs'!$B$44)) -> 0 | M75: =IF(L75=0,0,IF(L75<1,$C$70/'Data Inputs'!$B$44,IF(L75>'Data Inputs'!$B$44-1,$C$70,IF(L75<2,$C$70*2/'Data Inputs'!$B$44,IF(L75<3,$C$70*3/'Data Inputs'!$B$44,IF(L75<4,$C$70*4/'Data Inputs'!$B$44,"Error")))))) -> 0
A76: Electricity Consumption at Condition 5 (t5 × EFGR,5) = | B76: t5 × 0.806 × Nop,5 × Qcap/Ntotal) | C76: =0.0806*IF(L76=0,0,IF(L76<1,$C$70/'Data Inputs'!$B$44,IF(L76>'Data Inputs'!$B$44-1,$C$70,IF(L76<2,$C$70*2/'Data Inputs'!$B$44,IF(L76<3,$C$70*3/'Data Inputs'!$B$44,IF(L76<4,$C$70*4/'Data Inputs'!$B$44,"Error"))))))*'Data Inputs'!B34 -> 0 | D76: kW-hr/yr | L76: =IF($C$70=0,0,'Data Inputs'!B12/($C$70/'Data Inputs'!$B$44)) -> 0 | M76: =IF(L76=0,0,IF(L76<1,$C$70/'Data Inputs'!$B$44,IF(L76>'Data Inputs'!$B$44-1,$C$70,IF(L76<2,$C$70*2/'Data Inputs'!$B$44,IF(L76<3,$C$70*3/'Data Inputs'!$B$44,IF(L76<4,$C$70*4/'Data Inputs'!$B$44,"Error")))))) -> 0
A77: Electricity Consumption Total (ΣtnEFGR,n) | C77: =SUM(C72:C76) -> 0 | D77: kW-hr/yr
A80: Capital Recovery Factor:
A81: Capital Recovery Factor (CRF) = | B81: [i × (1 + i)n] / [(1 + i)n - 1] = | C81: =ROUND((('Data Inputs'!B60/100)*(1+('Data Inputs'!B60/100))^'Data Inputs'!B39)/(((1+('Data Inputs'!B60/100))^'Data Inputs'!B39)-1),4) -> 0.0996
B82: Where n = Equipment Life and i = Interest Rate

Sheet Cost Estimate
A1: Cost Estimate
A3: Capital Costs
G5: Flare Cost | K5: Vent Stream Piping Cost
A6: ="Total Capital Investment (TCI) (in "&'Data Inputs'!B58&" dollars)" -> Total Capital Investment (TCI) (in 2021 dollars) | G6: Type | H6: Cost Equation | I6: Capital Cost | K6: =IF(AND('Design Parameters'!C27>1,'Design Parameters'!C27<24),"183 x (L/100) x D^1.21", (IF(AND('Design Parameters'!C27>30,'Design Parameters'!C27<60)," 200 x (L/100) x D^1.07"))) -> 183 x (L/100) x D^1.21
A7: Parameter | B7: Equation | G7: 1 | H7: =IF('Data Inputs'!L1=1, "Select Flare Type on the Data Inputs tab", "") ->  | I7: 0 | K7: =IF(AND('Design Parameters'!C27>1,'Design Parameters'!C27<24),(183*('Data Inputs'!B40/100)*('Design Parameters'!C27)^1.21), (IF(AND('Design Parameters'!C27>30,'Design Parameters'!C27<60),(200* ('Data Inputs'!B40/100)*('Design Parameters'!C27)^1.07))))*('Data Inputs'!B59/'Data Inputs'!E59) -> 2826.554514
A8: Flare (CF) = | B8: =H15 -> (124 + 10.42D + 0.564H)^2 | C8: =I15 -> 94762.91787 | D8: =IF(C8=0, "Additional information needed to complete calculations. Please return to the Data Inputs tab.", " ") ->  | G8: 2 | H8: =IF('Data Inputs'!L1=2, "(93.6 + 10.97D + 0.899H)^2", "") ->  | I8: =IF('Data Inputs'!L1=2, ((93.6+(10.97*'Design Parameters'!C27)+(0.899*'Design Parameters'!C28))^2), 0) -> 0
A9: Knock-out Drum (CK) = | B9: 20.5 x [d x t x (h + 0.812 x d)]0.737 | C9: =(20.5)*(('Design Parameters'!C22*'Design Parameters'!C24*(('Design Parameters'!C23*12)+(0.812*'Design Parameters'!C22)))^0.737)*('Data Inputs'!B59/'Data Inputs'!E59) -> 8138.887752 | G9: 3 | H9: =IF('Data Inputs'!L1=3, "(124 + 10.42D + 0.564H)^2", "") -> (124 + 10.42D + 0.564H)^2 | I9: =IF('Data Inputs'!L1=3, ((124+(10.42*'Design Parameters'!C27)+(0.564*'Design Parameters'!C28))^2), 0) -> 75957.56482
A10: Vent Stream Transport Piping (Cp) = | B10: =K6 -> 183 x (L/100) x D^1.21 | C10: =K7 -> 2826.554514 | G10: 4 | H10: =IF('Data Inputs'!L1=4, "(91.7 + 3.26D + 1.968H)^2", "") ->  | I10: =IF('Data Inputs'!L1=4, ((91.7+(3.26*'Design Parameters'!C27)+(1.968*'Design Parameters'!C28))^2), 0) -> 0
A11: Flare Seal or Flame Arrestor (CS) = | B11: =IF('Data Inputs'!B41="no","",IF('Design Parameters'!C27<=24, "39.15 x D^2 + 3592", "0.1 x C_F")) ->  | C11: =IF('Data Inputs'!B41="no",0,IF('Design Parameters'!C27<=24, 39.15*'Design Parameters'!C27^2+3592,0.1*'Cost Estimate'!C8)*('Data Inputs'!B59/'Data Inputs'!E59)) -> 0
A12: Flare gas recovery (CFGR) | B12: =IF('Data Inputs'!B42="no","","731.3 * Qcap") ->  | C12: =IF('Data Inputs'!B42="yes",731.3*'Design Parameters'!C70,0)*('Data Inputs'!B59/'Data Inputs'!E59) -> 0
A13: Monitoring Equipment (CM) = | B13: =IF('Data Inputs'!M80=0,"No monitoring equipment selected",(IF(SUM('Data Inputs'!M73:M79)='Data Inputs'!M80,"(Based on actual costs for selected monitoring equipment)",(IF(SUM('Data Inputs'!M73:M79)=0,"(Based on default costs for selected monitoring equipment)","(Based on default and actual costs for selected monitoring equipment)"))))) -> (Based on default costs for selected monitoring equipment) | C13: =SUM('Data Inputs'!F73:F79) -> 51150.66079
A14: Utility costs (CU) | B14: As entered in Data Inputs tab | C14: ='Data Inputs'!B82 -> 0
H15: =H7&H8&H9&H10 -> (124 + 10.42D + 0.564H)^2 | I15: =SUM(I7:I10)*('Data Inputs'!B59/'Data Inputs'!E59) -> 94762.91787
A16: Equipment Costs (A) = | B16: CF + CM + CP + CK + CS + CFGR + CU = | C16: =SUM(C8:C15) -> 156879.0209
A18: Instrumentation = | B18: 0.10 × A = | C18: =0.1*C16 -> 15687.90209
A19: Sales taxes = | B19: 0.03 × A = | C19: =0.03*C16 -> 4706.370628
A20: Freight = | B20: 0.05 × A = | C20: =0.05*C16 -> 7843.951046
A22: Total Purchased Equipment Costs (B) = | C22: =C16++C18+C19+C20 -> 185117.2447
A24: ="Direct Installation Costs (in "&'Data Inputs'!B58&" dollars)" -> Direct Installation Costs (in 2021 dollars)
A25: Parameter | B25: Equation | C25: Cost
A26: Foundations and Supports = | B26: 0.12 × B = | C26: =0.12*C22 -> 22214.06936
A27: Handling and Erection = | B27: 0.40 × B = | C27: =0.4*C22 -> 74046.89788
A28: Electrical = | B28: 0.01 × B = | C28: =0.01*C22 -> 1851.172447
A29: Piping = | B29: 0.02 × B = | C29: =0.02*C22 -> 3702.344894
A30: Insulation = | B30: 0.01 × B = | C30: =0.01*C22 -> 1851.172447
A31: Painting = | B31: 0.01 × B = | C31: =0.01*C22 -> 1851.172447
A32: Direct Installation Costs = | C32: =SUM(C26:C31) -> 105516.8295
A34: Site Preparation (SP) = | B34: As entered in Data Inputs tab | C34: ='Data Inputs'!B83 -> 0
A35: Buildings (Bldg) = | B35: As entered in Data Inputs tab | C35: ='Data Inputs'!B84 -> 0
B37: Total Direct Costs (DC) = B + (0.57 × B) + SP + Bldg = | C37: =SUM(C32:C35)+C22 -> 290634.0742
A39: ="Total Indirect Installation Costs (in "&'Data Inputs'!B58&" dollars)" -> Total Indirect Installation Costs (in 2021 dollars)
A40: Parameter | B40: Equation | C40: Cost
A41: Engineering = | B41: 0.10 × B = | C41: =(0.1*C$22) -> 18511.72447
A42: Construction and field expenses = | B42: 0.10 × B = | C42: =(0.1*C$22) -> 18511.72447
A43: Contractor fees = | B43: 0.10 × B = | C43: =(0.1*C$22) -> 18511.72447
A44: Start-up = | B44: 0.01 × B = | C44: =(0.01*C$22) -> 1851.172447
A45: Performance test = | B45: 0.01 × B = | C45: =(0.01*C$22) -> 1851.172447
A46: Total Indirect Costs (IC) = | C46: =SUM(C41:C45) -> 59237.5183
A48: Contingency Cost (C ) = | B48: CF × (DC + IC) = | C48: =('Data Inputs'!B85/100)*(C37+C46) -> 34987.15925
A50: Total Capital Investment (TCI) = | B50: DC + IC + C = 1.89B + SP + Bldg. + C = | C50: =C37+C46+C48 -> 384858.7517 | D50: ="in "&'Data Inputs'!$B$58&" dollars" -> in 2021 dollars
A52: Annual Costs
A54: Direct Annual Costs
A55: Parameter | B55: Equation | C55: Cost
A56: Operating Labor Costs: | B56: Operator = Operator Hours/Year × Labor Rate = | C56: ='Data Inputs'!B53*'Data Inputs'!B68 -> 18666.9
B57: Supervisor = 15% of Operator = | C57: =(0.15*C56) -> 2800.035
A58: Maintenance Costs: | B58: =_xlfn.CONCAT("Labor = ",'Data Inputs'!B54," hours/shift × Labor Rate × (Operating Hours/8 hours/shift) =") -> Labor = 0.5 hours/shift × Labor Rate × (Operating Hours/8 hours/shift) = | C58: =('Data Inputs'!B54*'Data Inputs'!B69*'Design Parameters'!C10/8) -> 785
B59: Materials = 100% of maintenance labor = | C59: =C58 -> 785
A60: Annual Electricity Cost (Ce) = | B60: EFGR x Coste = | C60: =('Design Parameters'!C77)*'Data Inputs'!B67 -> 0
A61: Annual Purge Gas Cost (Cpurge) = | B61: Fpurge x Costfuel = | C61: ='Data Inputs'!B66*'Design Parameters'!C66 -> 103.9968 | D61: Aggregate Natural Gas Cost (or Credit)
A62: Annual Pilot Gas Cost (Cpilot) = | B62: Fpilot x Costfuel = | C62: ='Data Inputs'!B66*'Design Parameters'!C67 -> 144.9 | D62: Cpurge + Cpilot + Ca - Crec =
A63: Annual Auxiliary Fuel Cost (Ca) = | B63: Fa x Costfuel = | C63: ='Data Inputs'!B66*'Design Parameters'!C65 -> 10142.67948 | D63: =SUM(C61:C64) -> 10391.57628
A64: Annual NG Offset from recovered flare gas (-Crec) = | B64: Foffset x Costfuel = | C64: =-'Data Inputs'!B66*'Design Parameters'!C71 -> 0
A65: Annual Steam Cost (Cs) = | B65: Msteam x Coststeam = | C65: =('Design Parameters'!C49/1000)*'Data Inputs'!B65 -> 6989.296195
A67: Direct Annual Costs (DAC) = | C67: =SUM(C56:C65) -> 40417.80748 | D67: ="in "&'Data Inputs'!$B$58&" dollars" -> in 2021 dollars
A69: Indirect Annual Costs
A70: Parameter | B70: Equation | C70: Cost
A71: Overhead | B71: = 60% of sum of operator, supervisor, maintenance labor Plus maintenance materials | C71: =(0.6*(C56+C57+C58+C59)) -> 13822.161
A72: Administrative Charges | B72: = 2% of TCI | C72: =(0.02*C50) -> 7697.175034
A73: Property Taxes | B73: = 1% of TCI | C73: =0.01*C50 -> 3848.587517
A74: Insurance | B74: = 1% of TCI | C74: =0.01*C50 -> 3848.587517
A75: Capital Recovery | B75: = CRF × TCI | C75: ='Design Parameters'!$C$81*C50 -> 38331.93167
A77: Indirect Annual Costs (IAC) = | C77: =SUM(C71:C75) -> 67548.44274 | D77: ="in "&'Data Inputs'!$B$58&" dollars" -> in 2021 dollars
A79: Total Annual Cost (TAC) = | B79: DAC + IAC = | C79: =C77+C67 -> 107966.2502 | D79: ="in "&'Data Inputs'!$B$58&" dollars" -> in 2021 dollars
A81: Cost Effectiveness
A83: Cost Effectiveness
A84: Parameter | B84: Equation | C84: Cost
A85: Total Annual Cost = | B85: TAC = | C85: =C79 -> 107966.2502 | D85: ="per year in "&'Data Inputs'!B58& " dollars" -> per year in 2021 dollars
A86: Annual Quantity of VOC Destroyed = | B86: Wvoc = Mvoc x tWG x DE = | C86: ='Design Parameters'!C17 -> 93.1 | D86: tons/year
A87: Cost Effectiveness = | B87: Total Annual Cost (TAC) / Annual Quantity of VOC Destroyed = | C87: =C85/C86 -> 1159.680453 | D87: ="per ton of pollutants removed/recovered in "&'Data Inputs'!B58& " dollars" -> per ton of pollutants removed/recovered in 2021 dollars

Sheet Tables A & B
A1: Table A: Typical Capital Costs for Common Monitoring Equipment
A3: Monitor Type | B3: ="Capital Costs In "&'Data Inputs'!B58&" Dollars" -> Capital Costs In 2021 Dollars | H3: In 2017 Dollars
A4: Pilot Flame Monitor | B4: ='Tables A & B'!H4*('Data Inputs'!B59/'Data Inputs'!E59) -> 5115.066079 | H4: 4100
A5: Gas Chromatograph (GC) | B5: ='Tables A & B'!H5*('Data Inputs'!B59/'Data Inputs'!E59) -> 163432.5991 | H5: 131000
A6: Hydrogen Analyzer | B6: ='Tables A & B'!H6*('Data Inputs'!B59/'Data Inputs'!E59) -> 46035.59471 | H6: 36900
A7: Calorimeter | B7: ='Tables A & B'!H7*('Data Inputs'!B59/'Data Inputs'!E59) -> 96437.70925 | H7: 77300
A8: Flare Gas Flow Monitor | B8: ='Tables A & B'!H8*('Data Inputs'!B59/'Data Inputs'!E59) -> 72359.47137 | H8: 58000
A9: Steam Fine Controls/Metering | B9: ='Tables A & B'!H9*('Data Inputs'!B59/'Data Inputs'!E59) -> 73232.77533 | H9: 58700
A10: Air Fine Controls/Metering | B10: ='Tables A & B'!H10*('Data Inputs'!B59/'Data Inputs'!E59) -> 61879.82379 | H10: 49600
A12: Table B: Fraction of Heat Radiation for Common Gases
A14: Gas | B14: Flare Tip Diameter (inches) | C14: Fraction of Heat Radiation (f)
A15: Hydrogen | B15: <1.0 | C15: 0.1
B16: 1.6 | C16: 0.11
B17: 3.3 | C17: 0.16
B18: 8 | C18: 0.15
B19: 16 | C19: 0.17
A20: Butane | B20: <1.0 | C20: 0.29
B21: 1.6 | C21: 0.29
B22: 3.3 | C22: 0.29
B23: 8 | C23: 0.28
B24: 16 | C24: 0.3
A25: Methane | B25: <1.0 | C25: 0.16
B26: 1.6 | C26: 0.16
B27: 3.3 | C27: 0.15
A28: Natural Gas | B28: 8 | C28: 0.19
B29: 16 | C29: 0.23
